Workbook

Sheet Instructions
B1: Profitable Marketing Decision Aid | Q1: 2026-02-26
B2: How to Use This Decision Aid: Enter your cost of production in dollars per acre (yellow cells bellow) for corn, soybeans, wheat, cotton, sorghum, and/or canola. Click on the corn, soybean, wheat, cotton, sorghum, or canola tab at the bottom of the spreadsheet to navigate to the net return table for that commodity. In the net return tables, values (price and yield combinations) in red bold italic font indicate a net loss. Net return values (price and yield combinations) in black bold italic font indicate a net profit.
T3: 835.8 | U3: Corn
B4: Corn - Cost of Production ($/acre) | F4: 835.8 | G4: Modify the cost of production for each commodity to determine the yield-price combinations that result in profitable net returns. | T4: 563.14 | U4: Soybeans
B5: Soybeans - Cost of Production ($/acre) | F5: 563.14 | T5: 606.5 | U5: Wheat
B6: Wheat - Cost of Production ($/acre) | F6: 606.5 | T6: 917.27 | U6: Cotton
B7: Cotton - Cost of Production ($/acre) | F7: 917.27 | T7: 584.45 | U7: Sorghum
B8: Sorghum - Cost of Production ($/acre) | F8: 584.45

Sheet Corn
B1: Corn - Net Return Table ($/acre)
D3: Yield (bu/acre)
D4: =E4-10 -> 130 | E4: 140 | F4: 150 | G4: 160 | H4: =I4-10 -> 170 | I4: 180 | J4: =I4+10 -> 190 | K4: 200 | L4: 210 | M4: 220 | N4: 230
C5: =+C6-0.25 -> 2.95 | D5: =$C5*D$4-Instructions!$F$4 -> -452.3 | E5: =$C5*E$4-Instructions!$F$4 -> -422.8 | F5: =$C5*F$4-Instructions!$F$4 -> -393.3 | G5: =$C5*G$4-Instructions!$F$4 -> -363.8 | H5: =$C5*H$4-Instructions!$F$4 -> -334.3 | I5: =$C5*I$4-Instructions!$F$4 -> -304.8 | J5: =$C5*J$4-Instructions!$F$4 -> -275.3 | K5: =$C5*K$4-Instructions!$F$4 -> -245.8 | L5: =$C5*L$4-Instructions!$F$4 -> -216.3 | M5: =$C5*M$4-Instructions!$F$4 -> -186.8 | N5: =$C5*N$4-Instructions!$F$4 -> -157.3
C6: 3.2 | D6: =$C6*D$4-Instructions!$F$4 -> -419.8 | E6: =$C6*E$4-Instructions!$F$4 -> -387.8 | F6: =$C6*F$4-Instructions!$F$4 -> -355.8 | G6: =$C6*G$4-Instructions!$F$4 -> -323.8 | H6: =$C6*H$4-Instructions!$F$4 -> -291.8 | I6: =$C6*I$4-Instructions!$F$4 -> -259.8 | J6: =$C6*J$4-Instructions!$F$4 -> -227.8 | K6: =$C6*K$4-Instructions!$F$4 -> -195.8 | L6: =$C6*L$4-Instructions!$F$4 -> -163.8 | M6: =$C6*M$4-Instructions!$F$4 -> -131.8 | N6: =$C6*N$4-Instructions!$F$4 -> -99.8
C7: 3.45 | D7: =$C7*D$4-Instructions!$F$4 -> -387.3 | E7: =$C7*E$4-Instructions!$F$4 -> -352.8 | F7: =$C7*F$4-Instructions!$F$4 -> -318.3 | G7: =$C7*G$4-Instructions!$F$4 -> -283.8 | H7: =$C7*H$4-Instructions!$F$4 -> -249.3 | I7: =$C7*I$4-Instructions!$F$4 -> -214.8 | J7: =$C7*J$4-Instructions!$F$4 -> -180.3 | K7: =$C7*K$4-Instructions!$F$4 -> -145.8 | L7: =$C7*L$4-Instructions!$F$4 -> -111.3 | M7: =$C7*M$4-Instructions!$F$4 -> -76.8 | N7: =$C7*N$4-Instructions!$F$4 -> -42.3
C8: 3.7 | D8: =$C8*D$4-Instructions!$F$4 -> -354.8 | E8: =$C8*E$4-Instructions!$F$4 -> -317.8 | F8: =$C8*F$4-Instructions!$F$4 -> -280.8 | G8: =$C8*G$4-Instructions!$F$4 -> -243.8 | H8: =$C8*H$4-Instructions!$F$4 -> -206.8 | I8: =$C8*I$4-Instructions!$F$4 -> -169.8 | J8: =$C8*J$4-Instructions!$F$4 -> -132.8 | K8: =$C8*K$4-Instructions!$F$4 -> -95.8 | L8: =$C8*L$4-Instructions!$F$4 -> -58.8 | M8: =$C8*M$4-Instructions!$F$4 -> -21.8 | N8: =$C8*N$4-Instructions!$F$4 -> 15.2
C9: 3.95 | D9: =$C9*D$4-Instructions!$F$4 -> -322.3 | E9: =$C9*E$4-Instructions!$F$4 -> -282.8 | F9: =$C9*F$4-Instructions!$F$4 -> -243.3 | G9: =$C9*G$4-Instructions!$F$4 -> -203.8 | H9: =$C9*H$4-Instructions!$F$4 -> -164.3 | I9: =$C9*I$4-Instructions!$F$4 -> -124.8 | J9: =$C9*J$4-Instructions!$F$4 -> -85.3 | K9: =$C9*K$4-Instructions!$F$4 -> -45.8 | L9: =$C9*L$4-Instructions!$F$4 -> -6.3 | M9: =$C9*M$4-Instructions!$F$4 -> 33.2 | N9: =$C9*N$4-Instructions!$F$4 -> 72.7
C10: 4.2 | D10: =$C10*D$4-Instructions!$F$4 -> -289.8 | E10: =$C10*E$4-Instructions!$F$4 -> -247.8 | F10: =$C10*F$4-Instructions!$F$4 -> -205.8 | G10: =$C10*G$4-Instructions!$F$4 -> -163.8 | H10: =$C10*H$4-Instructions!$F$4 -> -121.8 | I10: =$C10*I$4-Instructions!$F$4 -> -79.8 | J10: =$C10*J$4-Instructions!$F$4 -> -37.8 | K10: =$C10*K$4-Instructions!$F$4 -> 4.2 | L10: =$C10*L$4-Instructions!$F$4 -> 46.2 | M10: =$C10*M$4-Instructions!$F$4 -> 88.2 | N10: =$C10*N$4-Instructions!$F$4 -> 130.2
C11: =+C12-0.25 -> 4.45 | D11: =$C11*D$4-Instructions!$F$4 -> -257.3 | E11: =$C11*E$4-Instructions!$F$4 -> -212.8 | F11: =$C11*F$4-Instructions!$F$4 -> -168.3 | G11: =$C11*G$4-Instructions!$F$4 -> -123.8 | H11: =$C11*H$4-Instructions!$F$4 -> -79.3 | I11: =$C11*I$4-Instructions!$F$4 -> -34.8 | J11: =$C11*J$4-Instructions!$F$4 -> 9.7 | K11: =$C11*K$4-Instructions!$F$4 -> 54.2 | L11: =$C11*L$4-Instructions!$F$4 -> 98.7 | M11: =$C11*M$4-Instructions!$F$4 -> 143.2 | N11: =$C11*N$4-Instructions!$F$4 -> 187.7
B12: Price | C12: 4.7 | D12: =$C12*D$4-Instructions!$F$4 -> -224.8 | E12: =$C12*E$4-Instructions!$F$4 -> -177.8 | F12: =$C12*F$4-Instructions!$F$4 -> -130.8 | G12: =$C12*G$4-Instructions!$F$4 -> -83.8 | H12: =$C12*H$4-Instructions!$F$4 -> -36.8 | I12: =$C12*I$4-Instructions!$F$4 -> 10.2 | J12: =$C12*J$4-Instructions!$F$4 -> 57.2 | K12: =$C12*K$4-Instructions!$F$4 -> 104.2 | L12: =$C12*L$4-Instructions!$F$4 -> 151.2 | M12: =$C12*M$4-Instructions!$F$4 -> 198.2 | N12: =$C12*N$4-Instructions!$F$4 -> 245.2
B13: ($/bu) | C13: =+C12+0.25 -> 4.95 | D13: =$C13*D$4-Instructions!$F$4 -> -192.3 | E13: =$C13*E$4-Instructions!$F$4 -> -142.8 | F13: =$C13*F$4-Instructions!$F$4 -> -93.3 | G13: =$C13*G$4-Instructions!$F$4 -> -43.8 | H13: =$C13*H$4-Instructions!$F$4 -> 5.7 | I13: =$C13*I$4-Instructions!$F$4 -> 55.2 | J13: =$C13*J$4-Instructions!$F$4 -> 104.7 | K13: =$C13*K$4-Instructions!$F$4 -> 154.2 | L13: =$C13*L$4-Instructions!$F$4 -> 203.7 | M13: =$C13*M$4-Instructions!$F$4 -> 253.2 | N13: =$C13*N$4-Instructions!$F$4 -> 302.7
C14: 5.2 | D14: =$C14*D$4-Instructions!$F$4 -> -159.8 | E14: =$C14*E$4-Instructions!$F$4 -> -107.8 | F14: =$C14*F$4-Instructions!$F$4 -> -55.8 | G14: =$C14*G$4-Instructions!$F$4 -> -3.8 | H14: =$C14*H$4-Instructions!$F$4 -> 48.2 | I14: =$C14*I$4-Instructions!$F$4 -> 100.2 | J14: =$C14*J$4-Instructions!$F$4 -> 152.2 | K14: =$C14*K$4-Instructions!$F$4 -> 204.2 | L14: =$C14*L$4-Instructions!$F$4 -> 256.2 | M14: =$C14*M$4-Instructions!$F$4 -> 308.2 | N14: =$C14*N$4-Instructions!$F$4 -> 360.2
C15: 5.45 | D15: =$C15*D$4-Instructions!$F$4 -> -127.3 | E15: =$C15*E$4-Instructions!$F$4 -> -72.8 | F15: =$C15*F$4-Instructions!$F$4 -> -18.3 | G15: =$C15*G$4-Instructions!$F$4 -> 36.2 | H15: =$C15*H$4-Instructions!$F$4 -> 90.7 | I15: =$C15*I$4-Instructions!$F$4 -> 145.2 | J15: =$C15*J$4-Instructions!$F$4 -> 199.7 | K15: =$C15*K$4-Instructions!$F$4 -> 254.2 | L15: =$C15*L$4-Instructions!$F$4 -> 308.7 | M15: =$C15*M$4-Instructions!$F$4 -> 363.2 | N15: =$C15*N$4-Instructions!$F$4 -> 417.7
C16: 5.7 | D16: =$C16*D$4-Instructions!$F$4 -> -94.8 | E16: =$C16*E$4-Instructions!$F$4 -> -37.8 | F16: =$C16*F$4-Instructions!$F$4 -> 19.2 | G16: =$C16*G$4-Instructions!$F$4 -> 76.2 | H16: =$C16*H$4-Instructions!$F$4 -> 133.2 | I16: =$C16*I$4-Instructions!$F$4 -> 190.2 | J16: =$C16*J$4-Instructions!$F$4 -> 247.2 | K16: =$C16*K$4-Instructions!$F$4 -> 304.2 | L16: =$C16*L$4-Instructions!$F$4 -> 361.2 | M16: =$C16*M$4-Instructions!$F$4 -> 418.2 | N16: =$C16*N$4-Instructions!$F$4 -> 475.2
C17: 5.95 | D17: =$C17*D$4-Instructions!$F$4 -> -62.3 | E17: =$C17*E$4-Instructions!$F$4 -> -2.8 | F17: =$C17*F$4-Instructions!$F$4 -> 56.7 | G17: =$C17*G$4-Instructions!$F$4 -> 116.2 | H17: =$C17*H$4-Instructions!$F$4 -> 175.7 | I17: =$C17*I$4-Instructions!$F$4 -> 235.2 | J17: =$C17*J$4-Instructions!$F$4 -> 294.7 | K17: =$C17*K$4-Instructions!$F$4 -> 354.2 | L17: =$C17*L$4-Instructions!$F$4 -> 413.7 | M17: =$C17*M$4-Instructions!$F$4 -> 473.2 | N17: =$C17*N$4-Instructions!$F$4 -> 532.7
C18: 6.2 | D18: =$C18*D$4-Instructions!$F$4 -> -29.8 | E18: =$C18*E$4-Instructions!$F$4 -> 32.2 | F18: =$C18*F$4-Instructions!$F$4 -> 94.2 | G18: =$C18*G$4-Instructions!$F$4 -> 156.2 | H18: =$C18*H$4-Instructions!$F$4 -> 218.2 | I18: =$C18*I$4-Instructions!$F$4 -> 280.2 | J18: =$C18*J$4-Instructions!$F$4 -> 342.2 | K18: =$C18*K$4-Instructions!$F$4 -> 404.2 | L18: =$C18*L$4-Instructions!$F$4 -> 466.2 | M18: =$C18*M$4-Instructions!$F$4 -> 528.2 | N18: =$C18*N$4-Instructions!$F$4 -> 590.2
C19: 6.45 | D19: =$C19*D$4-Instructions!$F$4 -> 2.7 | E19: =$C19*E$4-Instructions!$F$4 -> 67.2 | F19: =$C19*F$4-Instructions!$F$4 -> 131.7 | G19: =$C19*G$4-Instructions!$F$4 -> 196.2 | H19: =$C19*H$4-Instructions!$F$4 -> 260.7 | I19: =$C19*I$4-Instructions!$F$4 -> 325.2 | J19: =$C19*J$4-Instructions!$F$4 -> 389.7 | K19: =$C19*K$4-Instructions!$F$4 -> 454.2 | L19: =$C19*L$4-Instructions!$F$4 -> 518.7 | M19: =$C19*M$4-Instructions!$F$4 -> 583.2 | N19: =$C19*N$4-Instructions!$F$4 -> 647.7
C20: 6.7 | D20: =$C20*D$4-Instructions!$F$4 -> 35.2 | E20: =$C20*E$4-Instructions!$F$4 -> 102.2 | F20: =$C20*F$4-Instructions!$F$4 -> 169.2 | G20: =$C20*G$4-Instructions!$F$4 -> 236.2 | H20: =$C20*H$4-Instructions!$F$4 -> 303.2 | I20: =$C20*I$4-Instructions!$F$4 -> 370.2 | J20: =$C20*J$4-Instructions!$F$4 -> 437.2 | K20: =$C20*K$4-Instructions!$F$4 -> 504.2 | L20: =$C20*L$4-Instructions!$F$4 -> 571.2 | M20: =$C20*M$4-Instructions!$F$4 -> 638.2 | N20: =$C20*N$4-Instructions!$F$4 -> 705.2
B22: Net returns, for price and yield combinations, in red bold italic font indicate a net loss for that yield and price combination. Net returns, for price and yield combinations, in black bold italic font indicate a net profit for that yield and price combination.

Sheet Soybeans
B1: Soybean - Net Return Table ($/acre)
D3: Yield (bu/acre)
D4: =+E4-5 -> 35 | E4: 40 | F4: 45 | G4: 50 | H4: =+I4-5 -> 55 | I4: 60 | J4: =+I4+5 -> 65 | K4: 70 | L4: 75 | M4: 80 | N4: 85
C5: =C6-0.25 -> 8.95 | D5: =$C5*D$4-Instructions!$F$5 -> -249.89 | E5: =$C5*E$4-Instructions!$F$5 -> -205.14 | F5: =$C5*F$4-Instructions!$F$5 -> -160.39 | G5: =$C5*G$4-Instructions!$F$5 -> -115.64 | H5: =$C5*H$4-Instructions!$F$5 -> -70.89 | I5: =$C5*I$4-Instructions!$F$5 -> -26.14 | J5: =$C5*J$4-Instructions!$F$5 -> 18.61 | K5: =$C5*K$4-Instructions!$F$5 -> 63.36 | L5: =$C5*L$4-Instructions!$F$5 -> 108.11 | M5: =$C5*M$4-Instructions!$F$5 -> 152.86 | N5: =$C5*N$4-Instructions!$F$5 -> 197.61
C6: 9.2 | D6: =$C6*D$4-Instructions!$F$5 -> -241.14 | E6: =$C6*E$4-Instructions!$F$5 -> -195.14 | F6: =$C6*F$4-Instructions!$F$5 -> -149.14 | G6: =$C6*G$4-Instructions!$F$5 -> -103.14 | H6: =$C6*H$4-Instructions!$F$5 -> -57.14 | I6: =$C6*I$4-Instructions!$F$5 -> -11.14 | J6: =$C6*J$4-Instructions!$F$5 -> 34.86 | K6: =$C6*K$4-Instructions!$F$5 -> 80.86 | L6: =$C6*L$4-Instructions!$F$5 -> 126.86 | M6: =$C6*M$4-Instructions!$F$5 -> 172.86 | N6: =$C6*N$4-Instructions!$F$5 -> 218.86
C7: 9.45 | D7: =$C7*D$4-Instructions!$F$5 -> -232.39 | E7: =$C7*E$4-Instructions!$F$5 -> -185.14 | F7: =$C7*F$4-Instructions!$F$5 -> -137.89 | G7: =$C7*G$4-Instructions!$F$5 -> -90.64 | H7: =$C7*H$4-Instructions!$F$5 -> -43.39 | I7: =$C7*I$4-Instructions!$F$5 -> 3.86 | J7: =$C7*J$4-Instructions!$F$5 -> 51.11 | K7: =$C7*K$4-Instructions!$F$5 -> 98.36 | L7: =$C7*L$4-Instructions!$F$5 -> 145.61 | M7: =$C7*M$4-Instructions!$F$5 -> 192.86 | N7: =$C7*N$4-Instructions!$F$5 -> 240.11
C8: 9.7 | D8: =$C8*D$4-Instructions!$F$5 -> -223.64 | E8: =$C8*E$4-Instructions!$F$5 -> -175.14 | F8: =$C8*F$4-Instructions!$F$5 -> -126.64 | G8: =$C8*G$4-Instructions!$F$5 -> -78.14 | H8: =$C8*H$4-Instructions!$F$5 -> -29.64 | I8: =$C8*I$4-Instructions!$F$5 -> 18.86 | J8: =$C8*J$4-Instructions!$F$5 -> 67.36 | K8: =$C8*K$4-Instructions!$F$5 -> 115.86 | L8: =$C8*L$4-Instructions!$F$5 -> 164.36 | M8: =$C8*M$4-Instructions!$F$5 -> 212.86 | N8: =$C8*N$4-Instructions!$F$5 -> 261.36
C9: 9.95 | D9: =$C9*D$4-Instructions!$F$5 -> -214.89 | E9: =$C9*E$4-Instructions!$F$5 -> -165.14 | F9: =$C9*F$4-Instructions!$F$5 -> -115.39 | G9: =$C9*G$4-Instructions!$F$5 -> -65.64 | H9: =$C9*H$4-Instructions!$F$5 -> -15.89 | I9: =$C9*I$4-Instructions!$F$5 -> 33.86 | J9: =$C9*J$4-Instructions!$F$5 -> 83.61 | K9: =$C9*K$4-Instructions!$F$5 -> 133.36 | L9: =$C9*L$4-Instructions!$F$5 -> 183.11 | M9: =$C9*M$4-Instructions!$F$5 -> 232.86 | N9: =$C9*N$4-Instructions!$F$5 -> 282.61
C10: 10.2 | D10: =$C10*D$4-Instructions!$F$5 -> -206.14 | E10: =$C10*E$4-Instructions!$F$5 -> -155.14 | F10: =$C10*F$4-Instructions!$F$5 -> -104.14 | G10: =$C10*G$4-Instructions!$F$5 -> -53.14 | H10: =$C10*H$4-Instructions!$F$5 -> -2.14 | I10: =$C10*I$4-Instructions!$F$5 -> 48.86 | J10: =$C10*J$4-Instructions!$F$5 -> 99.86 | K10: =$C10*K$4-Instructions!$F$5 -> 150.86 | L10: =$C10*L$4-Instructions!$F$5 -> 201.86 | M10: =$C10*M$4-Instructions!$F$5 -> 252.86 | N10: =$C10*N$4-Instructions!$F$5 -> 303.86
C11: =C12-0.25 -> 10.45 | D11: =$C11*D$4-Instructions!$F$5 -> -197.39 | E11: =$C11*E$4-Instructions!$F$5 -> -145.14 | F11: =$C11*F$4-Instructions!$F$5 -> -92.89 | G11: =$C11*G$4-Instructions!$F$5 -> -40.64 | H11: =$C11*H$4-Instructions!$F$5 -> 11.61 | I11: =$C11*I$4-Instructions!$F$5 -> 63.86 | J11: =$C11*J$4-Instructions!$F$5 -> 116.11 | K11: =$C11*K$4-Instructions!$F$5 -> 168.36 | L11: =$C11*L$4-Instructions!$F$5 -> 220.61 | M11: =$C11*M$4-Instructions!$F$5 -> 272.86 | N11: =$C11*N$4-Instructions!$F$5 -> 325.11
B12: Price | C12: 10.7 | D12: =$C12*D$4-Instructions!$F$5 -> -188.64 | E12: =$C12*E$4-Instructions!$F$5 -> -135.14 | F12: =$C12*F$4-Instructions!$F$5 -> -81.64 | G12: =$C12*G$4-Instructions!$F$5 -> -28.14 | H12: =$C12*H$4-Instructions!$F$5 -> 25.36 | I12: =$C12*I$4-Instructions!$F$5 -> 78.86 | J12: =$C12*J$4-Instructions!$F$5 -> 132.36 | K12: =$C12*K$4-Instructions!$F$5 -> 185.86 | L12: =$C12*L$4-Instructions!$F$5 -> 239.36 | M12: =$C12*M$4-Instructions!$F$5 -> 292.86 | N12: =$C12*N$4-Instructions!$F$5 -> 346.36
B13: ($/bu) | C13: =C12+0.25 -> 10.95 | D13: =$C13*D$4-Instructions!$F$5 -> -179.89 | E13: =$C13*E$4-Instructions!$F$5 -> -125.14 | F13: =$C13*F$4-Instructions!$F$5 -> -70.39 | G13: =$C13*G$4-Instructions!$F$5 -> -15.64 | H13: =$C13*H$4-Instructions!$F$5 -> 39.11 | I13: =$C13*I$4-Instructions!$F$5 -> 93.86 | J13: =$C13*J$4-Instructions!$F$5 -> 148.61 | K13: =$C13*K$4-Instructions!$F$5 -> 203.36 | L13: =$C13*L$4-Instructions!$F$5 -> 258.11 | M13: =$C13*M$4-Instructions!$F$5 -> 312.86 | N13: =$C13*N$4-Instructions!$F$5 -> 367.61
C14: 11.2 | D14: =$C14*D$4-Instructions!$F$5 -> -171.14 | E14: =$C14*E$4-Instructions!$F$5 -> -115.14 | F14: =$C14*F$4-Instructions!$F$5 -> -59.14 | G14: =$C14*G$4-Instructions!$F$5 -> -3.14 | H14: =$C14*H$4-Instructions!$F$5 -> 52.86 | I14: =$C14*I$4-Instructions!$F$5 -> 108.86 | J14: =$C14*J$4-Instructions!$F$5 -> 164.86 | K14: =$C14*K$4-Instructions!$F$5 -> 220.86 | L14: =$C14*L$4-Instructions!$F$5 -> 276.86 | M14: =$C14*M$4-Instructions!$F$5 -> 332.86 | N14: =$C14*N$4-Instructions!$F$5 -> 388.86
C15: 11.45 | D15: =$C15*D$4-Instructions!$F$5 -> -162.39 | E15: =$C15*E$4-Instructions!$F$5 -> -105.14 | F15: =$C15*F$4-Instructions!$F$5 -> -47.89 | G15: =$C15*G$4-Instructions!$F$5 -> 9.36 | H15: =$C15*H$4-Instructions!$F$5 -> 66.61 | I15: =$C15*I$4-Instructions!$F$5 -> 123.86 | J15: =$C15*J$4-Instructions!$F$5 -> 181.11 | K15: =$C15*K$4-Instructions!$F$5 -> 238.36 | L15: =$C15*L$4-Instructions!$F$5 -> 295.61 | M15: =$C15*M$4-Instructions!$F$5 -> 352.86 | N15: =$C15*N$4-Instructions!$F$5 -> 410.11
C16: 11.7 | D16: =$C16*D$4-Instructions!$F$5 -> -153.64 | E16: =$C16*E$4-Instructions!$F$5 -> -95.14 | F16: =$C16*F$4-Instructions!$F$5 -> -36.64 | G16: =$C16*G$4-Instructions!$F$5 -> 21.86 | H16: =$C16*H$4-Instructions!$F$5 -> 80.36 | I16: =$C16*I$4-Instructions!$F$5 -> 138.86 | J16: =$C16*J$4-Instructions!$F$5 -> 197.36 | K16: =$C16*K$4-Instructions!$F$5 -> 255.86 | L16: =$C16*L$4-Instructions!$F$5 -> 314.36 | M16: =$C16*M$4-Instructions!$F$5 -> 372.86 | N16: =$C16*N$4-Instructions!$F$5 -> 431.36
C17: 11.95 | D17: =$C17*D$4-Instructions!$F$5 -> -144.89 | E17: =$C17*E$4-Instructions!$F$5 -> -85.14 | F17: =$C17*F$4-Instructions!$F$5 -> -25.39 | G17: =$C17*G$4-Instructions!$F$5 -> 34.36 | H17: =$C17*H$4-Instructions!$F$5 -> 94.11 | I17: =$C17*I$4-Instructions!$F$5 -> 153.86 | J17: =$C17*J$4-Instructions!$F$5 -> 213.61 | K17: =$C17*K$4-Instructions!$F$5 -> 273.36 | L17: =$C17*L$4-Instructions!$F$5 -> 333.11 | M17: =$C17*M$4-Instructions!$F$5 -> 392.86 | N17: =$C17*N$4-Instructions!$F$5 -> 452.61
C18: 12.2 | D18: =$C18*D$4-Instructions!$F$5 -> -136.14 | E18: =$C18*E$4-Instructions!$F$5 -> -75.14 | F18: =$C18*F$4-Instructions!$F$5 -> -14.14 | G18: =$C18*G$4-Instructions!$F$5 -> 46.86 | H18: =$C18*H$4-Instructions!$F$5 -> 107.86 | I18: =$C18*I$4-Instructions!$F$5 -> 168.86 | J18: =$C18*J$4-Instructions!$F$5 -> 229.86 | K18: =$C18*K$4-Instructions!$F$5 -> 290.86 | L18: =$C18*L$4-Instructions!$F$5 -> 351.86 | M18: =$C18*M$4-Instructions!$F$5 -> 412.86 | N18: =$C18*N$4-Instructions!$F$5 -> 473.86
C19: 12.45 | D19: =$C19*D$4-Instructions!$F$5 -> -127.39 | E19: =$C19*E$4-Instructions!$F$5 -> -65.14 | F19: =$C19*F$4-Instructions!$F$5 -> -2.89 | G19: =$C19*G$4-Instructions!$F$5 -> 59.36 | H19: =$C19*H$4-Instructions!$F$5 -> 121.61 | I19: =$C19*I$4-Instructions!$F$5 -> 183.86 | J19: =$C19*J$4-Instructions!$F$5 -> 246.11 | K19: =$C19*K$4-Instructions!$F$5 -> 308.36 | L19: =$C19*L$4-Instructions!$F$5 -> 370.61 | M19: =$C19*M$4-Instructions!$F$5 -> 432.86 | N19: =$C19*N$4-Instructions!$F$5 -> 495.11
C20: 12.7 | D20: =$C20*D$4-Instructions!$F$5 -> -118.64 | E20: =$C20*E$4-Instructions!$F$5 -> -55.14 | F20: =$C20*F$4-Instructions!$F$5 -> 8.36 | G20: =$C20*G$4-Instructions!$F$5 -> 71.86 | H20: =$C20*H$4-Instructions!$F$5 -> 135.36 | I20: =$C20*I$4-Instructions!$F$5 -> 198.86 | J20: =$C20*J$4-Instructions!$F$5 -> 262.36 | K20: =$C20*K$4-Instructions!$F$5 -> 325.86 | L20: =$C20*L$4-Instructions!$F$5 -> 389.36 | M20: =$C20*M$4-Instructions!$F$5 -> 452.86 | N20: =$C20*N$4-Instructions!$F$5 -> 516.36
B22: Net returns, for price and yield combinations, in red bold italic font indicate a net loss for that yield and price combination. Net returns, for price and yield combinations, in black bold italic font indicate a net profit for that yield and price combination.

Sheet Wheat
B1: Wheat - Net Return Table ($/acre)
D3: Yield (bu/acre)
D4: =E4-5 -> 60 | E4: 65 | F4: 70 | G4: 75 | H4: =I4-5 -> 80 | I4: 85 | J4: =I4+5 -> 90 | K4: 95 | L4: 100 | M4: 105 | N4: 110
C5: =+C6-0.2 -> 4.1 | D5: =$C5*D$4-Instructions!$F$6 -> -360.5 | E5: =$C5*E$4-Instructions!$F$6 -> -340 | F5: =$C5*F$4-Instructions!$F$6 -> -319.5 | G5: =$C5*G$4-Instructions!$F$6 -> -299 | H5: =$C5*H$4-Instructions!$F$6 -> -278.5 | I5: =$C5*I$4-Instructions!$F$6 -> -258 | J5: =$C5*J$4-Instructions!$F$6 -> -237.5 | K5: =$C5*K$4-Instructions!$F$6 -> -217 | L5: =$C5*L$4-Instructions!$F$6 -> -196.5 | M5: =$C5*M$4-Instructions!$F$6 -> -176 | N5: =$C5*N$4-Instructions!$F$6 -> -155.5
C6: 4.3 | D6: =$C6*D$4-Instructions!$F$6 -> -348.5 | E6: =$C6*E$4-Instructions!$F$6 -> -327 | F6: =$C6*F$4-Instructions!$F$6 -> -305.5 | G6: =$C6*G$4-Instructions!$F$6 -> -284 | H6: =$C6*H$4-Instructions!$F$6 -> -262.5 | I6: =$C6*I$4-Instructions!$F$6 -> -241 | J6: =$C6*J$4-Instructions!$F$6 -> -219.5 | K6: =$C6*K$4-Instructions!$F$6 -> -198 | L6: =$C6*L$4-Instructions!$F$6 -> -176.5 | M6: =$C6*M$4-Instructions!$F$6 -> -155 | N6: =$C6*N$4-Instructions!$F$6 -> -133.5
C7: 4.5 | D7: =$C7*D$4-Instructions!$F$6 -> -336.5 | E7: =$C7*E$4-Instructions!$F$6 -> -314 | F7: =$C7*F$4-Instructions!$F$6 -> -291.5 | G7: =$C7*G$4-Instructions!$F$6 -> -269 | H7: =$C7*H$4-Instructions!$F$6 -> -246.5 | I7: =$C7*I$4-Instructions!$F$6 -> -224 | J7: =$C7*J$4-Instructions!$F$6 -> -201.5 | K7: =$C7*K$4-Instructions!$F$6 -> -179 | L7: =$C7*L$4-Instructions!$F$6 -> -156.5 | M7: =$C7*M$4-Instructions!$F$6 -> -134 | N7: =$C7*N$4-Instructions!$F$6 -> -111.5
C8: 4.7 | D8: =$C8*D$4-Instructions!$F$6 -> -324.5 | E8: =$C8*E$4-Instructions!$F$6 -> -301 | F8: =$C8*F$4-Instructions!$F$6 -> -277.5 | G8: =$C8*G$4-Instructions!$F$6 -> -254 | H8: =$C8*H$4-Instructions!$F$6 -> -230.5 | I8: =$C8*I$4-Instructions!$F$6 -> -207 | J8: =$C8*J$4-Instructions!$F$6 -> -183.5 | K8: =$C8*K$4-Instructions!$F$6 -> -160 | L8: =$C8*L$4-Instructions!$F$6 -> -136.5 | M8: =$C8*M$4-Instructions!$F$6 -> -113 | N8: =$C8*N$4-Instructions!$F$6 -> -89.5
C9: 4.9 | D9: =$C9*D$4-Instructions!$F$6 -> -312.5 | E9: =$C9*E$4-Instructions!$F$6 -> -288 | F9: =$C9*F$4-Instructions!$F$6 -> -263.5 | G9: =$C9*G$4-Instructions!$F$6 -> -239 | H9: =$C9*H$4-Instructions!$F$6 -> -214.5 | I9: =$C9*I$4-Instructions!$F$6 -> -190 | J9: =$C9*J$4-Instructions!$F$6 -> -165.5 | K9: =$C9*K$4-Instructions!$F$6 -> -141 | L9: =$C9*L$4-Instructions!$F$6 -> -116.5 | M9: =$C9*M$4-Instructions!$F$6 -> -92 | N9: =$C9*N$4-Instructions!$F$6 -> -67.5
C10: 5.1 | D10: =$C10*D$4-Instructions!$F$6 -> -300.5 | E10: =$C10*E$4-Instructions!$F$6 -> -275 | F10: =$C10*F$4-Instructions!$F$6 -> -249.5 | G10: =$C10*G$4-Instructions!$F$6 -> -224 | H10: =$C10*H$4-Instructions!$F$6 -> -198.5 | I10: =$C10*I$4-Instructions!$F$6 -> -173 | J10: =$C10*J$4-Instructions!$F$6 -> -147.5 | K10: =$C10*K$4-Instructions!$F$6 -> -122 | L10: =$C10*L$4-Instructions!$F$6 -> -96.5 | M10: =$C10*M$4-Instructions!$F$6 -> -71 | N10: =$C10*N$4-Instructions!$F$6 -> -45.5
C11: =+C12-0.2 -> 5.3 | D11: =$C11*D$4-Instructions!$F$6 -> -288.5 | E11: =$C11*E$4-Instructions!$F$6 -> -262 | F11: =$C11*F$4-Instructions!$F$6 -> -235.5 | G11: =$C11*G$4-Instructions!$F$6 -> -209 | H11: =$C11*H$4-Instructions!$F$6 -> -182.5 | I11: =$C11*I$4-Instructions!$F$6 -> -156 | J11: =$C11*J$4-Instructions!$F$6 -> -129.5 | K11: =$C11*K$4-Instructions!$F$6 -> -103 | L11: =$C11*L$4-Instructions!$F$6 -> -76.5 | M11: =$C11*M$4-Instructions!$F$6 -> -50 | N11: =$C11*N$4-Instructions!$F$6 -> -23.5
B12: Price | C12: 5.5 | D12: =$C12*D$4-Instructions!$F$6 -> -276.5 | E12: =$C12*E$4-Instructions!$F$6 -> -249 | F12: =$C12*F$4-Instructions!$F$6 -> -221.5 | G12: =$C12*G$4-Instructions!$F$6 -> -194 | H12: =$C12*H$4-Instructions!$F$6 -> -166.5 | I12: =$C12*I$4-Instructions!$F$6 -> -139 | J12: =$C12*J$4-Instructions!$F$6 -> -111.5 | K12: =$C12*K$4-Instructions!$F$6 -> -84 | L12: =$C12*L$4-Instructions!$F$6 -> -56.5 | M12: =$C12*M$4-Instructions!$F$6 -> -29 | N12: =$C12*N$4-Instructions!$F$6 -> -1.5
B13: ($/bu) | C13: =+C12+0.2 -> 5.7 | D13: =$C13*D$4-Instructions!$F$6 -> -264.5 | E13: =$C13*E$4-Instructions!$F$6 -> -236 | F13: =$C13*F$4-Instructions!$F$6 -> -207.5 | G13: =$C13*G$4-Instructions!$F$6 -> -179 | H13: =$C13*H$4-Instructions!$F$6 -> -150.5 | I13: =$C13*I$4-Instructions!$F$6 -> -122 | J13: =$C13*J$4-Instructions!$F$6 -> -93.5 | K13: =$C13*K$4-Instructions!$F$6 -> -65 | L13: =$C13*L$4-Instructions!$F$6 -> -36.5 | M13: =$C13*M$4-Instructions!$F$6 -> -8 | N13: =$C13*N$4-Instructions!$F$6 -> 20.5
C14: 5.9 | D14: =$C14*D$4-Instructions!$F$6 -> -252.5 | E14: =$C14*E$4-Instructions!$F$6 -> -223 | F14: =$C14*F$4-Instructions!$F$6 -> -193.5 | G14: =$C14*G$4-Instructions!$F$6 -> -164 | H14: =$C14*H$4-Instructions!$F$6 -> -134.5 | I14: =$C14*I$4-Instructions!$F$6 -> -105 | J14: =$C14*J$4-Instructions!$F$6 -> -75.5 | K14: =$C14*K$4-Instructions!$F$6 -> -46 | L14: =$C14*L$4-Instructions!$F$6 -> -16.5 | M14: =$C14*M$4-Instructions!$F$6 -> 13 | N14: =$C14*N$4-Instructions!$F$6 -> 42.5
C15: 6.1 | D15: =$C15*D$4-Instructions!$F$6 -> -240.5 | E15: =$C15*E$4-Instructions!$F$6 -> -210 | F15: =$C15*F$4-Instructions!$F$6 -> -179.5 | G15: =$C15*G$4-Instructions!$F$6 -> -149 | H15: =$C15*H$4-Instructions!$F$6 -> -118.5 | I15: =$C15*I$4-Instructions!$F$6 -> -88 | J15: =$C15*J$4-Instructions!$F$6 -> -57.5 | K15: =$C15*K$4-Instructions!$F$6 -> -27 | L15: =$C15*L$4-Instructions!$F$6 -> 3.5 | M15: =$C15*M$4-Instructions!$F$6 -> 34 | N15: =$C15*N$4-Instructions!$F$6 -> 64.5
C16: 6.3 | D16: =$C16*D$4-Instructions!$F$6 -> -228.5 | E16: =$C16*E$4-Instructions!$F$6 -> -197 | F16: =$C16*F$4-Instructions!$F$6 -> -165.5 | G16: =$C16*G$4-Instructions!$F$6 -> -134 | H16: =$C16*H$4-Instructions!$F$6 -> -102.5 | I16: =$C16*I$4-Instructions!$F$6 -> -71 | J16: =$C16*J$4-Instructions!$F$6 -> -39.5 | K16: =$C16*K$4-Instructions!$F$6 -> -8 | L16: =$C16*L$4-Instructions!$F$6 -> 23.5 | M16: =$C16*M$4-Instructions!$F$6 -> 55 | N16: =$C16*N$4-Instructions!$F$6 -> 86.5
C17: 6.5 | D17: =$C17*D$4-Instructions!$F$6 -> -216.5 | E17: =$C17*E$4-Instructions!$F$6 -> -184 | F17: =$C17*F$4-Instructions!$F$6 -> -151.5 | G17: =$C17*G$4-Instructions!$F$6 -> -119 | H17: =$C17*H$4-Instructions!$F$6 -> -86.5 | I17: =$C17*I$4-Instructions!$F$6 -> -54 | J17: =$C17*J$4-Instructions!$F$6 -> -21.5 | K17: =$C17*K$4-Instructions!$F$6 -> 11 | L17: =$C17*L$4-Instructions!$F$6 -> 43.5 | M17: =$C17*M$4-Instructions!$F$6 -> 76 | N17: =$C17*N$4-Instructions!$F$6 -> 108.5
C18: 6.7 | D18: =$C18*D$4-Instructions!$F$6 -> -204.5 | E18: =$C18*E$4-Instructions!$F$6 -> -171 | F18: =$C18*F$4-Instructions!$F$6 -> -137.5 | G18: =$C18*G$4-Instructions!$F$6 -> -104 | H18: =$C18*H$4-Instructions!$F$6 -> -70.5 | I18: =$C18*I$4-Instructions!$F$6 -> -37 | J18: =$C18*J$4-Instructions!$F$6 -> -3.5 | K18: =$C18*K$4-Instructions!$F$6 -> 30 | L18: =$C18*L$4-Instructions!$F$6 -> 63.5 | M18: =$C18*M$4-Instructions!$F$6 -> 97 | N18: =$C18*N$4-Instructions!$F$6 -> 130.5
C19: 6.9 | D19: =$C19*D$4-Instructions!$F$6 -> -192.5 | E19: =$C19*E$4-Instructions!$F$6 -> -158 | F19: =$C19*F$4-Instructions!$F$6 -> -123.5 | G19: =$C19*G$4-Instructions!$F$6 -> -89 | H19: =$C19*H$4-Instructions!$F$6 -> -54.5 | I19: =$C19*I$4-Instructions!$F$6 -> -20 | J19: =$C19*J$4-Instructions!$F$6 -> 14.5 | K19: =$C19*K$4-Instructions!$F$6 -> 49 | L19: =$C19*L$4-Instructions!$F$6 -> 83.5 | M19: =$C19*M$4-Instructions!$F$6 -> 118 | N19: =$C19*N$4-Instructions!$F$6 -> 152.5
C20: 7.1 | D20: =$C20*D$4-Instructions!$F$6 -> -180.5 | E20: =$C20*E$4-Instructions!$F$6 -> -145 | F20: =$C20*F$4-Instructions!$F$6 -> -109.5 | G20: =$C20*G$4-Instructions!$F$6 -> -74 | H20: =$C20*H$4-Instructions!$F$6 -> -38.5 | I20: =$C20*I$4-Instructions!$F$6 -> -3 | J20: =$C20*J$4-Instructions!$F$6 -> 32.5 | K20: =$C20*K$4-Instructions!$F$6 -> 68 | L20: =$C20*L$4-Instructions!$F$6 -> 103.5 | M20: =$C20*M$4-Instructions!$F$6 -> 139 | N20: =$C20*N$4-Instructions!$F$6 -> 174.5
B22: Net returns, for price and yield combinations, in red bold italic font indicate a net loss for that yield and price combination. Net returns, for price and yield combinations, in black bold italic font indicate a net profit for that yield and price combination.

Sheet Cotton
B1: Cotton - Net Return Table ($/acre)
D3: Yield (lb/acre)
D4: 900 | E4: =+D4+50 -> 950 | F4: =+E4+50 -> 1000 | G4: 1050 | H4: 1100 | I4: 1150 | J4: 1200 | K4: 1250 | L4: 1300 | M4: 1350 | N4: 1400
C5: =C6-1 -> 62 | D5: =$C5/100*D$4-Instructions!$F$7 -> -359.27 | E5: =$C5/100*E$4-Instructions!$F$7 -> -328.27 | F5: =$C5/100*F$4-Instructions!$F$7 -> -297.27 | G5: =$C5/100*G$4-Instructions!$F$7 -> -266.27 | H5: =$C5/100*H$4-Instructions!$F$7 -> -235.27 | I5: =$C5/100*I$4-Instructions!$F$7 -> -204.27 | J5: =$C5/100*J$4-Instructions!$F$7 -> -173.27 | K5: =$C5/100*K$4-Instructions!$F$7 -> -142.27 | L5: =$C5/100*L$4-Instructions!$F$7 -> -111.27 | M5: =$C5/100*M$4-Instructions!$F$7 -> -80.27 | N5: =$C5/100*N$4-Instructions!$F$7 -> -49.27
C6: 63 | D6: =$C6/100*D$4-Instructions!$F$7 -> -350.27 | E6: =$C6/100*E$4-Instructions!$F$7 -> -318.77 | F6: =$C6/100*F$4-Instructions!$F$7 -> -287.27 | G6: =$C6/100*G$4-Instructions!$F$7 -> -255.77 | H6: =$C6/100*H$4-Instructions!$F$7 -> -224.27 | I6: =$C6/100*I$4-Instructions!$F$7 -> -192.77 | J6: =$C6/100*J$4-Instructions!$F$7 -> -161.27 | K6: =$C6/100*K$4-Instructions!$F$7 -> -129.77 | L6: =$C6/100*L$4-Instructions!$F$7 -> -98.27 | M6: =$C6/100*M$4-Instructions!$F$7 -> -66.77 | N6: =$C6/100*N$4-Instructions!$F$7 -> -35.27
C7: 64 | D7: =$C7/100*D$4-Instructions!$F$7 -> -341.27 | E7: =$C7/100*E$4-Instructions!$F$7 -> -309.27 | F7: =$C7/100*F$4-Instructions!$F$7 -> -277.27 | G7: =$C7/100*G$4-Instructions!$F$7 -> -245.27 | H7: =$C7/100*H$4-Instructions!$F$7 -> -213.27 | I7: =$C7/100*I$4-Instructions!$F$7 -> -181.27 | J7: =$C7/100*J$4-Instructions!$F$7 -> -149.27 | K7: =$C7/100*K$4-Instructions!$F$7 -> -117.27 | L7: =$C7/100*L$4-Instructions!$F$7 -> -85.27 | M7: =$C7/100*M$4-Instructions!$F$7 -> -53.27 | N7: =$C7/100*N$4-Instructions!$F$7 -> -21.27
C8: 65 | D8: =$C8/100*D$4-Instructions!$F$7 -> -332.27 | E8: =$C8/100*E$4-Instructions!$F$7 -> -299.77 | F8: =$C8/100*F$4-Instructions!$F$7 -> -267.27 | G8: =$C8/100*G$4-Instructions!$F$7 -> -234.77 | H8: =$C8/100*H$4-Instructions!$F$7 -> -202.27 | I8: =$C8/100*I$4-Instructions!$F$7 -> -169.77 | J8: =$C8/100*J$4-Instructions!$F$7 -> -137.27 | K8: =$C8/100*K$4-Instructions!$F$7 -> -104.77 | L8: =$C8/100*L$4-Instructions!$F$7 -> -72.27 | M8: =$C8/100*M$4-Instructions!$F$7 -> -39.77 | N8: =$C8/100*N$4-Instructions!$F$7 -> -7.27
C9: 66 | D9: =$C9/100*D$4-Instructions!$F$7 -> -323.27 | E9: =$C9/100*E$4-Instructions!$F$7 -> -290.27 | F9: =$C9/100*F$4-Instructions!$F$7 -> -257.27 | G9: =$C9/100*G$4-Instructions!$F$7 -> -224.27 | H9: =$C9/100*H$4-Instructions!$F$7 -> -191.27 | I9: =$C9/100*I$4-Instructions!$F$7 -> -158.27 | J9: =$C9/100*J$4-Instructions!$F$7 -> -125.27 | K9: =$C9/100*K$4-Instructions!$F$7 -> -92.27 | L9: =$C9/100*L$4-Instructions!$F$7 -> -59.27 | M9: =$C9/100*M$4-Instructions!$F$7 -> -26.27 | N9: =$C9/100*N$4-Instructions!$F$7 -> 6.73
C10: 67 | D10: =$C10/100*D$4-Instructions!$F$7 -> -314.27 | E10: =$C10/100*E$4-Instructions!$F$7 -> -280.77 | F10: =$C10/100*F$4-Instructions!$F$7 -> -247.27 | G10: =$C10/100*G$4-Instructions!$F$7 -> -213.77 | H10: =$C10/100*H$4-Instructions!$F$7 -> -180.27 | I10: =$C10/100*I$4-Instructions!$F$7 -> -146.77 | J10: =$C10/100*J$4-Instructions!$F$7 -> -113.27 | K10: =$C10/100*K$4-Instructions!$F$7 -> -79.77 | L10: =$C10/100*L$4-Instructions!$F$7 -> -46.27 | M10: =$C10/100*M$4-Instructions!$F$7 -> -12.77 | N10: =$C10/100*N$4-Instructions!$F$7 -> 20.73
C11: =C12-1 -> 68 | D11: =$C11/100*D$4-Instructions!$F$7 -> -305.27 | E11: =$C11/100*E$4-Instructions!$F$7 -> -271.27 | F11: =$C11/100*F$4-Instructions!$F$7 -> -237.27 | G11: =$C11/100*G$4-Instructions!$F$7 -> -203.27 | H11: =$C11/100*H$4-Instructions!$F$7 -> -169.27 | I11: =$C11/100*I$4-Instructions!$F$7 -> -135.27 | J11: =$C11/100*J$4-Instructions!$F$7 -> -101.27 | K11: =$C11/100*K$4-Instructions!$F$7 -> -67.27 | L11: =$C11/100*L$4-Instructions!$F$7 -> -33.27 | M11: =$C11/100*M$4-Instructions!$F$7 -> 0.73 | N11: =$C11/100*N$4-Instructions!$F$7 -> 34.73
B12: Price | C12: 69 | D12: =$C12/100*D$4-Instructions!$F$7 -> -296.27 | E12: =$C12/100*E$4-Instructions!$F$7 -> -261.77 | F12: =$C12/100*F$4-Instructions!$F$7 -> -227.27 | G12: =$C12/100*G$4-Instructions!$F$7 -> -192.77 | H12: =$C12/100*H$4-Instructions!$F$7 -> -158.27 | I12: =$C12/100*I$4-Instructions!$F$7 -> -123.77 | J12: =$C12/100*J$4-Instructions!$F$7 -> -89.27 | K12: =$C12/100*K$4-Instructions!$F$7 -> -54.77 | L12: =$C12/100*L$4-Instructions!$F$7 -> -20.27 | M12: =$C12/100*M$4-Instructions!$F$7 -> 14.23 | N12: =$C12/100*N$4-Instructions!$F$7 -> 48.73
B13: (cent/lb) | C13: =C12+1 -> 70 | D13: =$C13/100*D$4-Instructions!$F$7 -> -287.27 | E13: =$C13/100*E$4-Instructions!$F$7 -> -252.27 | F13: =$C13/100*F$4-Instructions!$F$7 -> -217.27 | G13: =$C13/100*G$4-Instructions!$F$7 -> -182.27 | H13: =$C13/100*H$4-Instructions!$F$7 -> -147.27 | I13: =$C13/100*I$4-Instructions!$F$7 -> -112.27 | J13: =$C13/100*J$4-Instructions!$F$7 -> -77.27 | K13: =$C13/100*K$4-Instructions!$F$7 -> -42.27 | L13: =$C13/100*L$4-Instructions!$F$7 -> -7.27 | M13: =$C13/100*M$4-Instructions!$F$7 -> 27.73 | N13: =$C13/100*N$4-Instructions!$F$7 -> 62.73
C14: 71 | D14: =$C14/100*D$4-Instructions!$F$7 -> -278.27 | E14: =$C14/100*E$4-Instructions!$F$7 -> -242.77 | F14: =$C14/100*F$4-Instructions!$F$7 -> -207.27 | G14: =$C14/100*G$4-Instructions!$F$7 -> -171.77 | H14: =$C14/100*H$4-Instructions!$F$7 -> -136.27 | I14: =$C14/100*I$4-Instructions!$F$7 -> -100.77 | J14: =$C14/100*J$4-Instructions!$F$7 -> -65.27 | K14: =$C14/100*K$4-Instructions!$F$7 -> -29.77 | L14: =$C14/100*L$4-Instructions!$F$7 -> 5.73 | M14: =$C14/100*M$4-Instructions!$F$7 -> 41.23 | N14: =$C14/100*N$4-Instructions!$F$7 -> 76.73
C15: 72 | D15: =$C15/100*D$4-Instructions!$F$7 -> -269.27 | E15: =$C15/100*E$4-Instructions!$F$7 -> -233.27 | F15: =$C15/100*F$4-Instructions!$F$7 -> -197.27 | G15: =$C15/100*G$4-Instructions!$F$7 -> -161.27 | H15: =$C15/100*H$4-Instructions!$F$7 -> -125.27 | I15: =$C15/100*I$4-Instructions!$F$7 -> -89.27 | J15: =$C15/100*J$4-Instructions!$F$7 -> -53.27 | K15: =$C15/100*K$4-Instructions!$F$7 -> -17.27 | L15: =$C15/100*L$4-Instructions!$F$7 -> 18.73 | M15: =$C15/100*M$4-Instructions!$F$7 -> 54.73 | N15: =$C15/100*N$4-Instructions!$F$7 -> 90.73
C16: 73 | D16: =$C16/100*D$4-Instructions!$F$7 -> -260.27 | E16: =$C16/100*E$4-Instructions!$F$7 -> -223.77 | F16: =$C16/100*F$4-Instructions!$F$7 -> -187.27 | G16: =$C16/100*G$4-Instructions!$F$7 -> -150.77 | H16: =$C16/100*H$4-Instructions!$F$7 -> -114.27 | I16: =$C16/100*I$4-Instructions!$F$7 -> -77.77 | J16: =$C16/100*J$4-Instructions!$F$7 -> -41.27 | K16: =$C16/100*K$4-Instructions!$F$7 -> -4.77 | L16: =$C16/100*L$4-Instructions!$F$7 -> 31.73 | M16: =$C16/100*M$4-Instructions!$F$7 -> 68.23 | N16: =$C16/100*N$4-Instructions!$F$7 -> 104.73
C17: 74 | D17: =$C17/100*D$4-Instructions!$F$7 -> -251.27 | E17: =$C17/100*E$4-Instructions!$F$7 -> -214.27 | F17: =$C17/100*F$4-Instructions!$F$7 -> -177.27 | G17: =$C17/100*G$4-Instructions!$F$7 -> -140.27 | H17: =$C17/100*H$4-Instructions!$F$7 -> -103.27 | I17: =$C17/100*I$4-Instructions!$F$7 -> -66.27 | J17: =$C17/100*J$4-Instructions!$F$7 -> -29.27 | K17: =$C17/100*K$4-Instructions!$F$7 -> 7.73 | L17: =$C17/100*L$4-Instructions!$F$7 -> 44.73 | M17: =$C17/100*M$4-Instructions!$F$7 -> 81.73 | N17: =$C17/100*N$4-Instructions!$F$7 -> 118.73
C18: 75 | D18: =$C18/100*D$4-Instructions!$F$7 -> -242.27 | E18: =$C18/100*E$4-Instructions!$F$7 -> -204.77 | F18: =$C18/100*F$4-Instructions!$F$7 -> -167.27 | G18: =$C18/100*G$4-Instructions!$F$7 -> -129.77 | H18: =$C18/100*H$4-Instructions!$F$7 -> -92.27 | I18: =$C18/100*I$4-Instructions!$F$7 -> -54.77 | J18: =$C18/100*J$4-Instructions!$F$7 -> -17.27 | K18: =$C18/100*K$4-Instructions!$F$7 -> 20.23 | L18: =$C18/100*L$4-Instructions!$F$7 -> 57.73 | M18: =$C18/100*M$4-Instructions!$F$7 -> 95.23 | N18: =$C18/100*N$4-Instructions!$F$7 -> 132.73
C19: 76 | D19: =$C19/100*D$4-Instructions!$F$7 -> -233.27 | E19: =$C19/100*E$4-Instructions!$F$7 -> -195.27 | F19: =$C19/100*F$4-Instructions!$F$7 -> -157.27 | G19: =$C19/100*G$4-Instructions!$F$7 -> -119.27 | H19: =$C19/100*H$4-Instructions!$F$7 -> -81.27 | I19: =$C19/100*I$4-Instructions!$F$7 -> -43.27 | J19: =$C19/100*J$4-Instructions!$F$7 -> -5.27 | K19: =$C19/100*K$4-Instructions!$F$7 -> 32.73 | L19: =$C19/100*L$4-Instructions!$F$7 -> 70.73 | M19: =$C19/100*M$4-Instructions!$F$7 -> 108.73 | N19: =$C19/100*N$4-Instructions!$F$7 -> 146.73
C20: 77 | D20: =$C20/100*D$4-Instructions!$F$7 -> -224.27 | E20: =$C20/100*E$4-Instructions!$F$7 -> -185.77 | F20: =$C20/100*F$4-Instructions!$F$7 -> -147.27 | G20: =$C20/100*G$4-Instructions!$F$7 -> -108.77 | H20: =$C20/100*H$4-Instructions!$F$7 -> -70.27 | I20: =$C20/100*I$4-Instructions!$F$7 -> -31.77 | J20: =$C20/100*J$4-Instructions!$F$7 -> 6.73 | K20: =$C20/100*K$4-Instructions!$F$7 -> 45.23 | L20: =$C20/100*L$4-Instructions!$F$7 -> 83.73 | M20: =$C20/100*M$4-Instructions!$F$7 -> 122.23 | N20: =$C20/100*N$4-Instructions!$F$7 -> 160.73
B22: Net returns, for price and yield combinations, in red bold italic font indicate a net loss for that yield and price combination. Net returns, for price and yield combinations, in black bold italic font indicate a net profit for that yield and price combination.

Sheet Sorghum
B1: Sorghum - Net Return Table ($/acre)
D3: Yield (bu/acre)
D4: =+E4-10 -> 70 | E4: =+F4-10 -> 80 | F4: =+G4-10 -> 90 | G4: =+H4-10 -> 100 | H4: =+I4-10 -> 110 | I4: 120 | J4: =+I4+10 -> 130 | K4: 140 | L4: 150 | M4: 160 | N4: 170
C5: =+C6-0.25 -> 2.9 | D5: =$C5*D$4-Instructions!$F$8 -> -381.45 | E5: =$C5*E$4-Instructions!$F$8 -> -352.45 | F5: =$C5*F$4-Instructions!$F$8 -> -323.45 | G5: =$C5*G$4-Instructions!$F$8 -> -294.45 | H5: =$C5*H$4-Instructions!$F$8 -> -265.45 | I5: =$C5*I$4-Instructions!$F$8 -> -236.45 | J5: =$C5*J$4-Instructions!$F$8 -> -207.45 | K5: =$C5*K$4-Instructions!$F$8 -> -178.45 | L5: =$C5*L$4-Instructions!$F$8 -> -149.45 | M5: =$C5*M$4-Instructions!$F$8 -> -120.45 | N5: =$C5*N$4-Instructions!$F$8 -> -91.45
C6: 3.15 | D6: =$C6*D$4-Instructions!$F$8 -> -363.95 | E6: =$C6*E$4-Instructions!$F$8 -> -332.45 | F6: =$C6*F$4-Instructions!$F$8 -> -300.95 | G6: =$C6*G$4-Instructions!$F$8 -> -269.45 | H6: =$C6*H$4-Instructions!$F$8 -> -237.95 | I6: =$C6*I$4-Instructions!$F$8 -> -206.45 | J6: =$C6*J$4-Instructions!$F$8 -> -174.95 | K6: =$C6*K$4-Instructions!$F$8 -> -143.45 | L6: =$C6*L$4-Instructions!$F$8 -> -111.95 | M6: =$C6*M$4-Instructions!$F$8 -> -80.45 | N6: =$C6*N$4-Instructions!$F$8 -> -48.95
C7: 3.4 | D7: =$C7*D$4-Instructions!$F$8 -> -346.45 | E7: =$C7*E$4-Instructions!$F$8 -> -312.45 | F7: =$C7*F$4-Instructions!$F$8 -> -278.45 | G7: =$C7*G$4-Instructions!$F$8 -> -244.45 | H7: =$C7*H$4-Instructions!$F$8 -> -210.45 | I7: =$C7*I$4-Instructions!$F$8 -> -176.45 | J7: =$C7*J$4-Instructions!$F$8 -> -142.45 | K7: =$C7*K$4-Instructions!$F$8 -> -108.45 | L7: =$C7*L$4-Instructions!$F$8 -> -74.45 | M7: =$C7*M$4-Instructions!$F$8 -> -40.45 | N7: =$C7*N$4-Instructions!$F$8 -> -6.45
C8: 3.65 | D8: =$C8*D$4-Instructions!$F$8 -> -328.95 | E8: =$C8*E$4-Instructions!$F$8 -> -292.45 | F8: =$C8*F$4-Instructions!$F$8 -> -255.95 | G8: =$C8*G$4-Instructions!$F$8 -> -219.45 | H8: =$C8*H$4-Instructions!$F$8 -> -182.95 | I8: =$C8*I$4-Instructions!$F$8 -> -146.45 | J8: =$C8*J$4-Instructions!$F$8 -> -109.95 | K8: =$C8*K$4-Instructions!$F$8 -> -73.45 | L8: =$C8*L$4-Instructions!$F$8 -> -36.95 | M8: =$C8*M$4-Instructions!$F$8 -> -0.45 | N8: =$C8*N$4-Instructions!$F$8 -> 36.05
C9: 3.9 | D9: =$C9*D$4-Instructions!$F$8 -> -311.45 | E9: =$C9*E$4-Instructions!$F$8 -> -272.45 | F9: =$C9*F$4-Instructions!$F$8 -> -233.45 | G9: =$C9*G$4-Instructions!$F$8 -> -194.45 | H9: =$C9*H$4-Instructions!$F$8 -> -155.45 | I9: =$C9*I$4-Instructions!$F$8 -> -116.45 | J9: =$C9*J$4-Instructions!$F$8 -> -77.45 | K9: =$C9*K$4-Instructions!$F$8 -> -38.45 | L9: =$C9*L$4-Instructions!$F$8 -> 0.55 | M9: =$C9*M$4-Instructions!$F$8 -> 39.55 | N9: =$C9*N$4-Instructions!$F$8 -> 78.55
C10: 4.15 | D10: =$C10*D$4-Instructions!$F$8 -> -293.95 | E10: =$C10*E$4-Instructions!$F$8 -> -252.45 | F10: =$C10*F$4-Instructions!$F$8 -> -210.95 | G10: =$C10*G$4-Instructions!$F$8 -> -169.45 | H10: =$C10*H$4-Instructions!$F$8 -> -127.95 | I10: =$C10*I$4-Instructions!$F$8 -> -86.45 | J10: =$C10*J$4-Instructions!$F$8 -> -44.95 | K10: =$C10*K$4-Instructions!$F$8 -> -3.45 | L10: =$C10*L$4-Instructions!$F$8 -> 38.05 | M10: =$C10*M$4-Instructions!$F$8 -> 79.55 | N10: =$C10*N$4-Instructions!$F$8 -> 121.05
C11: =+C12-0.25 -> 4.4 | D11: =$C11*D$4-Instructions!$F$8 -> -276.45 | E11: =$C11*E$4-Instructions!$F$8 -> -232.45 | F11: =$C11*F$4-Instructions!$F$8 -> -188.45 | G11: =$C11*G$4-Instructions!$F$8 -> -144.45 | H11: =$C11*H$4-Instructions!$F$8 -> -100.45 | I11: =$C11*I$4-Instructions!$F$8 -> -56.45 | J11: =$C11*J$4-Instructions!$F$8 -> -12.45 | K11: =$C11*K$4-Instructions!$F$8 -> 31.55 | L11: =$C11*L$4-Instructions!$F$8 -> 75.55 | M11: =$C11*M$4-Instructions!$F$8 -> 119.55 | N11: =$C11*N$4-Instructions!$F$8 -> 163.55
B12: Price | C12: 4.65 | D12: =$C12*D$4-Instructions!$F$8 -> -258.95 | E12: =$C12*E$4-Instructions!$F$8 -> -212.45 | F12: =$C12*F$4-Instructions!$F$8 -> -165.95 | G12: =$C12*G$4-Instructions!$F$8 -> -119.45 | H12: =$C12*H$4-Instructions!$F$8 -> -72.95 | I12: =$C12*I$4-Instructions!$F$8 -> -26.45 | J12: =$C12*J$4-Instructions!$F$8 -> 20.05 | K12: =$C12*K$4-Instructions!$F$8 -> 66.55 | L12: =$C12*L$4-Instructions!$F$8 -> 113.05 | M12: =$C12*M$4-Instructions!$F$8 -> 159.55 | N12: =$C12*N$4-Instructions!$F$8 -> 206.05
B13: ($/bu) | C13: =+C12+0.25 -> 4.9 | D13: =$C13*D$4-Instructions!$F$8 -> -241.45 | E13: =$C13*E$4-Instructions!$F$8 -> -192.45 | F13: =$C13*F$4-Instructions!$F$8 -> -143.45 | G13: =$C13*G$4-Instructions!$F$8 -> -94.45 | H13: =$C13*H$4-Instructions!$F$8 -> -45.45 | I13: =$C13*I$4-Instructions!$F$8 -> 3.55 | J13: =$C13*J$4-Instructions!$F$8 -> 52.55 | K13: =$C13*K$4-Instructions!$F$8 -> 101.55 | L13: =$C13*L$4-Instructions!$F$8 -> 150.55 | M13: =$C13*M$4-Instructions!$F$8 -> 199.55 | N13: =$C13*N$4-Instructions!$F$8 -> 248.55
C14: 5.15 | D14: =$C14*D$4-Instructions!$F$8 -> -223.95 | E14: =$C14*E$4-Instructions!$F$8 -> -172.45 | F14: =$C14*F$4-Instructions!$F$8 -> -120.95 | G14: =$C14*G$4-Instructions!$F$8 -> -69.45 | H14: =$C14*H$4-Instructions!$F$8 -> -17.95 | I14: =$C14*I$4-Instructions!$F$8 -> 33.55 | J14: =$C14*J$4-Instructions!$F$8 -> 85.05 | K14: =$C14*K$4-Instructions!$F$8 -> 136.55 | L14: =$C14*L$4-Instructions!$F$8 -> 188.05 | M14: =$C14*M$4-Instructions!$F$8 -> 239.55 | N14: =$C14*N$4-Instructions!$F$8 -> 291.05
C15: 5.4 | D15: =$C15*D$4-Instructions!$F$8 -> -206.45 | E15: =$C15*E$4-Instructions!$F$8 -> -152.45 | F15: =$C15*F$4-Instructions!$F$8 -> -98.45 | G15: =$C15*G$4-Instructions!$F$8 -> -44.45 | H15: =$C15*H$4-Instructions!$F$8 -> 9.55 | I15: =$C15*I$4-Instructions!$F$8 -> 63.55 | J15: =$C15*J$4-Instructions!$F$8 -> 117.55 | K15: =$C15*K$4-Instructions!$F$8 -> 171.55 | L15: =$C15*L$4-Instructions!$F$8 -> 225.55 | M15: =$C15*M$4-Instructions!$F$8 -> 279.55 | N15: =$C15*N$4-Instructions!$F$8 -> 333.55
C16: 5.65 | D16: =$C16*D$4-Instructions!$F$8 -> -188.95 | E16: =$C16*E$4-Instructions!$F$8 -> -132.45 | F16: =$C16*F$4-Instructions!$F$8 -> -75.95 | G16: =$C16*G$4-Instructions!$F$8 -> -19.45 | H16: =$C16*H$4-Instructions!$F$8 -> 37.05 | I16: =$C16*I$4-Instructions!$F$8 -> 93.55 | J16: =$C16*J$4-Instructions!$F$8 -> 150.05 | K16: =$C16*K$4-Instructions!$F$8 -> 206.55 | L16: =$C16*L$4-Instructions!$F$8 -> 263.05 | M16: =$C16*M$4-Instructions!$F$8 -> 319.55 | N16: =$C16*N$4-Instructions!$F$8 -> 376.05
C17: 5.9 | D17: =$C17*D$4-Instructions!$F$8 -> -171.45 | E17: =$C17*E$4-Instructions!$F$8 -> -112.45 | F17: =$C17*F$4-Instructions!$F$8 -> -53.45 | G17: =$C17*G$4-Instructions!$F$8 -> 5.55 | H17: =$C17*H$4-Instructions!$F$8 -> 64.55 | I17: =$C17*I$4-Instructions!$F$8 -> 123.55 | J17: =$C17*J$4-Instructions!$F$8 -> 182.55 | K17: =$C17*K$4-Instructions!$F$8 -> 241.55 | L17: =$C17*L$4-Instructions!$F$8 -> 300.55 | M17: =$C17*M$4-Instructions!$F$8 -> 359.55 | N17: =$C17*N$4-Instructions!$F$8 -> 418.55
C18: 6.15 | D18: =$C18*D$4-Instructions!$F$8 -> -153.95 | E18: =$C18*E$4-Instructions!$F$8 -> -92.45 | F18: =$C18*F$4-Instructions!$F$8 -> -30.95 | G18: =$C18*G$4-Instructions!$F$8 -> 30.55 | H18: =$C18*H$4-Instructions!$F$8 -> 92.05 | I18: =$C18*I$4-Instructions!$F$8 -> 153.55 | J18: =$C18*J$4-Instructions!$F$8 -> 215.05 | K18: =$C18*K$4-Instructions!$F$8 -> 276.55 | L18: =$C18*L$4-Instructions!$F$8 -> 338.05 | M18: =$C18*M$4-Instructions!$F$8 -> 399.55 | N18: =$C18*N$4-Instructions!$F$8 -> 461.05
C19: 6.4 | D19: =$C19*D$4-Instructions!$F$8 -> -136.45 | E19: =$C19*E$4-Instructions!$F$8 -> -72.45 | F19: =$C19*F$4-Instructions!$F$8 -> -8.45 | G19: =$C19*G$4-Instructions!$F$8 -> 55.55 | H19: =$C19*H$4-Instructions!$F$8 -> 119.55 | I19: =$C19*I$4-Instructions!$F$8 -> 183.55 | J19: =$C19*J$4-Instructions!$F$8 -> 247.55 | K19: =$C19*K$4-Instructions!$F$8 -> 311.55 | L19: =$C19*L$4-Instructions!$F$8 -> 375.55 | M19: =$C19*M$4-Instructions!$F$8 -> 439.55 | N19: =$C19*N$4-Instructions!$F$8 -> 503.55
C20: 6.65 | D20: =$C20*D$4-Instructions!$F$8 -> -118.95 | E20: =$C20*E$4-Instructions!$F$8 -> -52.45 | F20: =$C20*F$4-Instructions!$F$8 -> 14.05 | G20: =$C20*G$4-Instructions!$F$8 -> 80.55 | H20: =$C20*H$4-Instructions!$F$8 -> 147.05 | I20: =$C20*I$4-Instructions!$F$8 -> 213.55 | J20: =$C20*J$4-Instructions!$F$8 -> 280.05 | K20: =$C20*K$4-Instructions!$F$8 -> 346.55 | L20: =$C20*L$4-Instructions!$F$8 -> 413.05 | M20: =$C20*M$4-Instructions!$F$8 -> 479.55 | N20: =$C20*N$4-Instructions!$F$8 -> 546.05
B22: Net returns, for price and yield combinations, in red bold italic font indicate a net loss for that yield and price combination. Net returns, for price and yield combinations, in black bold italic font indicate a net profit for that yield and price combination.
